Cogmind - Beta 13 X1 @@@ ROGUE MODE // 2023.07.24 @ 22:39:36 Player: Cracklepappy Result: Destroyed by 5V-L8M(R) with Subdweller Machine Gun Performance ------------- Evolutions (0) 0 Regions Visited (3) 600 Robots Destroyed (52) 260 Value Destroyed (983) 983 Prototype IDs (3) 60 Alien Tech Used (0) 0 Bonus (0) 0 TOTAL SCORE: 1903 Bonus ------- None Cogmind --------- Core Integrity 0/250 Matter 208/500 Energy 250/250 System Corruption 0% Temperature Cool (0) Movement Treading (240) Ox1 Location -10/Subcaves Parts ------- > --- POWER (1) -------- Ion Engine > --- PROPULSION (2) --- Light Treads Light Treads > --- UTILITY (2) ------ Large Storage Unit High-capacity Matter Pod > --- WEAPON (2) ------- Subdweller Laser Subdweller Beam Cannon > --- INVENTORY (15) --- Aluminum Leg Aluminum Leg Compact Wheel Medium Storage Unit Huge Storage Unit Structural Scanner Improved Terrain Scanner Cobbler Unit Beam Cannon Light Assault Rifle Light Assault Rifle Grenade Launcher Rocket Launcher Mining Laser Peak State ------------ > --- POWER ------------ Ion Engine > --- PROPULSION ------- Light Treads Light Treads > --- UTILITY ---------- Large Storage Unit High-capacity Matter Pod > --- WEAPON ----------- Subdweller Laser Subdweller Beam Cannon > --- INVENTORY -------- Aluminum Leg Aluminum Leg Compact Wheel Medium Storage Unit Huge Storage Unit Structural Scanner Improved Terrain Scanner Cobbler Unit Beam Cannon Light Assault Rifle Light Assault Rifle Grenade Launcher Rocket Launcher Mining Laser [Rating: 11] Favorites ----------- Power Ion Engine Engine Ion Engine Propulsion Light Treads Treads Light Treads Leg Aluminum Leg Wheel Wheel Utility Large Storage Unit Device Seismic Detector Storage Large Storage Unit Weapon Light Assault Rifle Energy Gun Subdweller Laser Energy Cannon Beam Cannon Ballistic Gun Light Assault Rifle Launcher Grenade Launcher Special Weapon Mining Laser Build | -11 -10 -10 -10 ------- Run | Jun Mat Min Sub Slots Evolved . | . . . . Power . | . . . . Propulsion . | . . . . Utility . | . . . . Weapon . | . . . . Parts Attached 43 | 8 14 10 11 Power 4 | 1 2 . 1 Engine 4 | 1 2 . 1 Core . | . . . . Reactor . | . . . . Propulsion 9 | 3 4 1 1 Treads 6 | 2 2 1 1 Leg 2 | . 2 . . Wheel 1 | 1 . . . Hover . | . . . . Flight . | . . . . Utility 6 | 2 3 1 . Device 1 | 1 . . . Storage 5 | 1 3 1 . Processor . | . . . . Hackware . | . . . . Protection . | . . . . Artifact . | . . . . Weapon 24 | 2 5 8 9 Energy Gun 1 | . . . 1 Energy Cannon 7 | . . 3 4 Ballistic Gun 6 | 2 4 . . Ballistic Cannon . | . . . . Launcher 9 | . 1 5 3 Special Weapon 1 | . . . 1 Impact Weapon . | . . . . Slashing Weapon . | . . . . Piercing Weapon . | . . . . Special Melee Weapon . | . . . . Unidentified Prototypes . | . . . . Parts Lost 10 | . 6 2 2 Power 1 | . 1 . . Propulsion 4 | . 2 1 1 Utility 1 | . . 1 . Weapon 4 | . 3 . 1 Highest Loss Streak 3 | . 3 1 2 To Critical Strikes . | . . . . Average Slot Usage (%) 98 | . 97 99 99 Engine 13 | . 11 14 14 Treads 23 | . 19 27 28 Leg 4 | . 8 . . Device 6 | . 14 . . Storage 21 | . 14 27 28 Energy Cannon 3 | . . 7 4 Ballistic Gun 14 | . 24 7 . Launcher 9 | . 3 12 18 Naked Turns . | . . . . Heaviest Build 89 | 14 89 36 41 Greatest Support 40 | 40 40 40 40 Greatest Overweight (x) 2 | 1 2 . 1 Average Overweight (x) . | . . . . Largest Inventory Capacity 25 | 8 25 15 15 Average Capacity 14 | 7 14 15 15 Most Carried 15 | 8 15 15 15 Average Carried 13 | 4 13 14 14 Final Capacity 15 | 8 15 15 15 Final Carried 15 | 8 15 15 15 Class Distribution -------------------- 73% | Mutant 26% | Scavenger-Mutant Dominant Class ---------------- Scavenger-Mutant | -10/Materials Mutant | -10/Mines Mutant | -10/Subcaves Resources | -11 -10 -10 -10 ----------- Run | Jun Mat Min Sub Matter Collected 1191 | 250 414 201 326 Remotely . | . . . . Salvage Created 1253 | 62 671 201 319 Parts 117 | 10 59 37 11 Haulers Intercepted 2 | . 2 . . Recyclers Shooed 1 | . 1 . . Parts Field Recycled . | . . . . Retrieved Matter . | . . . . Parts Self-Destructed 14 | . . . 14 Prevented . | . . . . Kills | -11 -10 -10 -10 ------- Run | Jun Mat Min Sub Combat Hostiles Destroyed 28 | . 12 8 8 Guns 10 | . 9 1 . AOE 18 | . 3 7 8 Classes Destroyed 11 | 1 8 . 2 Worker 6 | . 6 . . Builder 6 | . 1 5 . Tunneler 5 | 3 1 1 . Hauler 2 | . 2 . . Recycler 2 | . 2 . . Operator 1 | . 1 . . Watcher 2 | . 2 . . Swarmer 12 | . 6 6 . Grunt 8 | . 6 2 . Cobbler 1 | . . . 1 Subdweller 8 | . . . 8 Best Kill Streak 10 | 2 10 3 3 Combat Bots Only 4 | . 4 3 3 Max Kills in Single Turn 4 | 1 4 3 2 Gunslinging 1 | . 1 . . Exploded 3 | . 2 3 2 Melee . | . . . . Uniques/NPCs Destroyed . | . . . . Combat | -11 -10 -10 -10 -------- Run | Jun Mat Min Sub Damage Taken 1471 | . 879 167 425 Core 263 | . 161 27 75 Absorbed by Shields . | . . . . Core Remaining (%) 100 | 100 . . . Volleys Fired 155 | 10 75 25 45 Largest 2 | 2 2 2 2 Hottest 120 | 40 40 80 120 Shots Fired 252 | 20 146 29 57 Gun 172 | 20 144 5 3 Cannon 36 | . . 16 20 Launcher 35 | . 2 8 25 Special 9 | . . . 9 Kinetic 173 | 20 144 5 4 Thermal 48 | . . 16 32 Explosive 31 | . 2 8 21 Electromagnetic . | . . . . Robot Hit Streak 12 | 8 12 7 11 Robot Miss Streak 3 | 1 3 3 2 Penetration Max . | . . . . Secondary Targets 3 | . 3 . . Max Gunslinging Chain 1 | . 1 . . Shots Hit Robots 124 | 14 63 16 31 Core Hits 83 | 5 40 18 20 Critical Kills . | . . . . Critical Parts Destroyed 1 | . 1 . . Critical Strikes 1 | . 1 . . Destroy 1 | . 1 . . Melee Attacks . | . . . . Impact . | . . . . Slashing . | . . . . Piercing . | . . . . Sneak Attacks . | . . . . Combat Hostiles . | . . . . Follow-up Attacks . | . . . . Damage Inflicted 4323 | 161 2009 639 1514 Guns 926 | 161 669 33 63 Cannons 454 | . . 193 261 Explosions 2943 | . 1340 413 1190 Melee . | . . . . Ramming . | . . . . Kinetic 1163 | 161 669 33 300 Thermal 517 | . . 193 324 Explosive 2623 | . 1320 413 890 Electromagnetic 20 | . 20 . . Impact . | . . . . Slashing . | . . . . Piercing . | . . . . Highest Corruption . | . . . . Average Corruption . | . . . . Corruption Purged . | . . . . Corruption Blocked . | . . . . Overload Shots . | . . . . Overflow Damage 164 | . 160 1 3 Projectiles . | . . . . Explosions 164 | . 160 1 3 Melee . | . . . . Knockbacks . | . . . . Impact . | . . . . Kinetic . | . . . . Secondary . | . . . . Self-Inflicted Damage 474 | . 167 39 268 Shots 11 | . 2 1 8 Rammed . | . . . . Targets Rammed . | . . . . Kicked . | . . . . Crushed . | . . . . Highest Temperature 118 | . 42 118 . Average Temperature 25 | . 14 30 . Received Heat Transfer 267 | . 213 24 30 Siege Activations . | . . . . Robots Corrupted . | . . . . Combat Hostiles . | . . . . Parts Fried . | . . . . Impact Corruptions . | . . . . Robots Melted . | . . . . Combat Hostiles . | . . . . Parts Melted 1 | . . . 1 Heat Transferred 1037 | . . 407 630 Parts Sabotaged . | . . . . Parts Stolen . | . . . . Parts Stripped . | . . . . Power Chain Reactions . | . . . . Missiles Intercepted . | . . . . Alert | -11 -10 -10 -10 ------- Run | Jun Mat Min Sub Peak Influence 374 | 15 374 198 . Initial 66 | . 9 66 . Average 166 | 6 216 106 . Maximum Alert Level 1 | . 1 . . Low Security (%) 63 | 100 38 100 . Level 1 36 | . 61 . . Level 2 . | . . . . Level 3 . | . . . . Level 4 . | . . . . Level 5 . | . . . . High Security . | . . . . Max Security . | . . . . Squads Dispatched 2 | . 2 . . Investigation . | . . . . Extermination . | . . . . Reinforcement 2 | . 2 . . Assault . | . . . . Garrison . | . . . . Intercept . | . . . . Searches Triggered . | . . . . Construction Impeded . | . . . . Haulers Reinforced . | . . . . Active Scanning Responses . | . . . . Cargo Convoy Interrupts . | . . . . Stealth | -11 -10 -10 -10 --------- Run | Jun Mat Min Sub Distress Signals 1 | . 1 . . Communications Jammed . | . . . . Distress Signals . | . . . . Times Spotted 36 | . 19 8 9 Peak Tracking Total 4 | . 4 3 3 Tactical Retreats . | . . . . Traps | -11 -10 -10 -10 ------- Run | Jun Mat Min Sub Traps Triggered . | . . . . Indirectly . | . . . . Trap Hack Attempts . | . . . . Triggered . | . . . . Disarmed . | . . . . Reprogrammed . | . . . . Reused . | . . . . Traps Extracted . | . . . . Installed . | . . . . Triggered . | . . . . Machines | -11 -10 -10 -10 ---------- Run | Jun Mat Min Sub Machines Disabled 11 | . 10 1 . Max in Single Turn 2 | . 2 1 . Machines Repaired . | . . . . Machines Sabotaged . | . . . . Overloaded Fab Kills . | . . . . Hacking | -11 -10 -10 -10 --------- Run | Jun Mat Min Sub Machines Accessed 5 | . 5 . . Terminals 5 | . 5 . . Fabricators . | . . . . Repair Stations . | . . . . Recycling Units . | . . . . Scanalyzers . | . . . . Garrison Access . | . . . . Total Hacks 18 | . 18 . . Successful 8 | . 8 . . Failed 9 | . 9 . . Catastrophic 1 | . 1 . . Database Lockouts 1 | . 1 . . Manual 12 | . 12 . . Terminals 18 | . 18 . . Fabricators . | . . . . Repair Stations . | . . . . Recycling Units . | . . . . Scanalyzers . | . . . . Garrison Access . | . . . . Terminal Hacks 8 | . 8 . . Part Schematic 2 | . 2 . . Robot Analysis 3 | . 3 . . Prototype ID Bank 2 | . 2 . . Hauler Manifests 1 | . 1 . . Fabricator Hacks . | . . . . Repair Station Hacks . | . . . . Recycling Unit Hacks . | . . . . Scanalyzer . | . . . . Garrison Access Hacks . | . . . . Unauthorized Hacks . | . . . . Terminals . | . . . . Fabricators . | . . . . Repair Stations . | . . . . Recycling Units . | . . . . Scanalyzers . | . . . . Garrison Access . | . . . . Data Cores Recovered . | . . . . Used . | . . . . Hacking Detections 6 | . 6 . . Full Trace Events . | . . . . Feedback Events . | . . . . Feedback Blocked . | . . . . Robot Schematics Acquired . | . . . . Robots Built . | . . . . Authchips . | . . . . Time . | . . . . Total Robot Build Rating . | . . . . Part Schematics Acquired 2 | . 2 . . Parts Built . | . . . . Authchips . | . . . . Time . | . . . . Total Part Build Rating . | . . . . Parts Repaired . | . . . . Time . | . . . . Parts Recycled . | . . . . Recycled Matter . | . . . . Retrieved Matter . | . . . . Retrieved Components . | . . . . Parts Scanalyzed . | . . . . Part Schematics Acquired . | . . . . Parts Damaged . | . . . . Bothacking | -11 -10 -10 -10 ------------ Run | Jun Mat Min Sub Used RIF Installer . | . . . . Robots Hacked . | . . . . Non-combat . | . . . . Combat . | . . . . Robot Hacks Applied . | . . . . Relay Couplers Released . | . . . . Fabnet Peak Effective % . | . . . . Robots Rewired . | . . . . Allies Hacked . | . . . . Hacks Repelled . | . . . . Allies | -11 -10 -10 -10 -------- Run | Jun Mat Min Sub Total Allies . | . . . . Largest Group . | . . . . Highest-Rated Group . | . . . . Highest-Rated Ally . | . . . . Total Orders . | . . . . Ally Attacks . | . . . . Total Damage . | . . . . Kills . | . . . . Allies Corrupted . | . . . . Allies Melted . | . . . . Intel | -11 -10 -10 -10 ------- Run | Jun Mat Min Sub Robot Analysis Total 3 | . 3 . . Derelict Logs Recovered 1 | . . 1 . Drone Launches . | . . . . Drone Recoveries . | . . . . Exploration | -11 -10 -10 -10 ------------- Run | Jun Mat Min Sub Turns Passed 3139 | 126 1460 897 656 Spaces Moved 1500 | 88 705 417 290 Core 3 | 3 . . . Treads 1208 | 1 500 417 290 Legs 205 | . 205 . . Wheels 84 | 84 . . . Hover . | . . . . Flight . | . . . . Fastest Speed 50 | 50 160 160 160 Average Speed 163 | 90 169 160 177 Slowest Speed 320 | 160 320 160 240 Overloaded Moves . | . . . . Propulsion Burnouts . | . . . . Robots Hopped . | . . . . Cave-ins Triggered . | . . . . Exploration Rate (%) 46 | 5 97 59 24 Regions Visited 3 Branch Regions 2 Pre-discovered Areas . | . . . . Known Exits Taken . | . . . . Unknown Exits Taken 3 | 1 1 1 . Scrap Searched . | . . . . Spaces Dug 49 | . 13 36 . Terrain Destroyed 285 | . 79 55 151 Melee . | . . . . Projectile . | . . . . AOE 285 | . 79 55 151 Terrain Rammed . | . . . . Walls Destroyed . | . . . . Machines Disabled . | . . . . Actions | -11 -10 -10 -10 --------- Run | Jun Mat Min Sub Total 1924 | 113 840 618 353 Wait 178 | . 23 155 . Move 1497 | 87 704 416 290 Hop . | . . . . Pick Up 35 | 8 17 7 3 Fast Attach 9 | 7 1 . 1 Attach 9 | . 5 2 2 Detach 1 | . . . 1 Swap 25 | 1 8 8 8 Drop 15 | . 7 5 3 Fire 155 | 10 75 25 45 Melee . | . . . . Ram . | . . . . Kick . | . . . . Crush . | . . . . Escape Stasis . | . . . . Rewire . | . . . . Trap . | . . . . Miscellaneous . | . . . . Route ------- -11/Junkyard -10/Materials (discovered 5 exits: [*Mat x3] / [*Min x2]) -10/Mines (discovered 3 exits: [*Mat x2] / [*Sub]) -10/Subcaves (discovered 1 exit: [*Mat]) History --------- Turn | Location | Event 2 | -11/Junkyard | Met Revision 17 11 | -11/Junkyard | Discovered new exit (range 14) 127 | -11/Junkyard | Entered Materials 266 | -10/Materials | Central database locked down 304 | -10/Materials | Build established: Mutant 340 | -10/Materials | Discovered new exit (range 16) 537 | -10/Materials | Core integrity fell below 50% 585 | -10/Materials | Discovered new exit (range 14) 601 | -10/Materials | Discovered new exit (range 15) 745 | -10/Materials | Lost 3 parts (2n1w) 1125 | -10/Materials | Build established: Scavenger-Mutant 1319 | -10/Materials | Discovered new exit (range 16) 1478 | -10/Materials | Discovered new exit (range 8) 1587 | -10/Materials | Entered Mines 1608 | -10/Mines | Discovered new exit (range 14) 1716 | -10/Mines | Received a Rocket Launcher from a helpful Derelict 1748 | -10/Mines | Learned Materials trap positions 1878 | -10/Mines | Build established: Mutant 1982 | -10/Mines | Discovered new exit (range 8) 2031 | -10/Mines | Discovered new exit (range 7) 2484 | -10/Mines | Entered Subcaves 2700 | -10/Subcaves | Ambushed by Subdweller buried in earth 2700 | -10/Subcaves | Ambushed by Subdweller buried in earth 2702 | -10/Subcaves | Shifting Twisted Machinery released Sub. Shrapnel Launcher 2710 | -10/Subcaves | Core integrity fell below 20% 2722 | -10/Subcaves | Shifting Twisted Machinery released Sub. Monowheel 2753 | -10/Subcaves | A swath of the cavern ceiling suddenly collapsed 2882 | -10/Subcaves | Discovered new exit (range 15) 3013 | -10/Subcaves | Ambushed by Subdweller buried in earth 3140 | -10/Subcaves | Destroyed by 5V-L8M(R) with Subdweller Machine Gun Last Messages --------------- 03013_ KE-RTF(R) destroyed. 03014_ WQ-7M4(R): "ARGHSUB!" 03014_ Sub. Shrapnel Launcher destroyed. 03018_ The unstable cave ceiling collapses. 03018_ WQ-7M4(R) affixes Scrap Shield Fragment to Scrap Shield. 03018_ WQ-7M4(R) destroyed. 03026_ Destroyed Wheel. 03027_ D9-G9W(O) puts together Flamer. 03029_ Ion Engine melted. 03029_ D9-G9W(O) cries out in pain. 03029_ D9-G9W(O) destroyed. 03032_ Acquired 14 matter. 03034_ The unstable cave ceiling collapses. 03038_ Acquired 58 matter. 03040_ The unstable cave ceiling collapses. 03042_ Acquired Sub. Beam Cannon. 03044_ The unstable cave ceiling collapses. 03047_ Dropped Ion Engine. 03048_ Acquired Cobbler Unit. 03059_ Acquired 22 matter. Map ----- +----------------------------------------------------+ | ?????????????????????????????????????????????????? | | ?????????????????????????????????????????????????? | | ?????????????????????????????????????????????????? | | ?????????????????????????????????????????????????? | | ?????????????????????????????????????????????????? | | ?????????????????????????????????????????????????? | | ?????????????????????????????????????????????????? | | ?????????????????????????????????????????????????? | | ?????????????????????????????????????????????????? | | ?????????????????????????????????????????????????? | | ?????????????????????????????????????????????????? | | ?????????????????????????????????????????????????? | | ?????????????????????#"??????????????????????????? | | ????????????????????##""?????????????????????????? | | ??????????????????"?" "#????????????????????????? | | ??????????????????# " "##??????????????????????? | | ??????????????????# R" #??????????????????????? | | ??????????????????#R " #??????????????????????? | | ??????????????????? " #??????????????????????? | | ???????????????????? #??????????????????????? | | ????????????????????? #??????????????????????? | | ???????????????###???? #??????????????????????? | | ??????????????## #????# #??????????????????????? | | ??????????????# #????# #??????????????????????? | | ??????????????# ###### #??????????????????????? | | ??????????????# @#??????????????????????? | | ?????????????## #??????????????????????? | | ?????????????# ##?????????????????????? | | ?????????????# #?????????????????????? | | ?????????????## #?????????????????????? | | ??????????????#### ## ##?????????????????????? | | ??????????????#### ####??????????????????????? | | ??????????????# ##????????????????????????? | | ??????????????# ##???????????????????????? | | ??????????????# ### ########### ????????????? | | ??????????????###??## #???????????? | | ???????????????????# ???????????? | | ??????????????????## ???????????? | | ????????????????### #???????????? | | ????????????????# # # #????????????? | | ????????????????# # # ### ##????????????? | | ????????????????# | #####????#?????????????? | | ??????????????### * ###### #??????????????? | | ??????????????# #????????????? | | ??????????????# # #??????????? | | ?????????????## # "#####?## ????????????? | | ?????????????# "#?????????# ?????????????? | | ?????????????# #& = ##???????????????????????? | | ?????????????# # #???????????????????????? | | ?????????????# ##???????????????????????? | +----------------------------------------------------+ Best States ------------- Heat Dissipation 25 Energy Generation 10 Energy Capacity 250 Matter Stores 411 Matter Capacity 500 Sight Range 16 Terrain Scan Density 10 Evasion (%) 44 Recoil Reduction 2 Item Schematics ----------------- Huge Storage Unit | -10/Materials | Hacked Cargo Storage Unit | -10/Materials | Hacked Robot Schematics ------------------ None Fabricated ------------ Nothing Alien Tech Used ----------------- None Achievements -------------- None Challenges ------------ None Game ------ Seed SurgeDroneReconstructor Manual? 0 Play Time 00:24:52 Cumulative 560.8 hours Start 2023.07.23 @ 15:42:43 End 2023.07.24 @ 22:39:36 Sessions 3 Manual Loads 0 Difficulty Rogue Special Mode None Game No. 385 Rogue 385 Adventurer 0 Explorer 0 Win Type - Total 18 Types 9/3/2/0/0/1/2/1/0 Lore% 83 Gallery% 91 Achievement% 79 Wizard Run 0 Options --------- ASCII 0 Keyboard 0 Movement Numpad Keybinds 0 Fullscreen 2 Font 24/Terminus Map View 76x50 Tactical HUD 1 Map Filters NONE Filters NONE Steam 1 RUN: 53eb61fd-5479-484a-9912-f1b12ce7c95e